[Event "Titled Tuesday Blitz May 30 Late 2023"]
[White "Kramnik, Vladimir"]
[Black "Senft, Sean"]
[WhiteFideId "4101588"]
[BlackFideId "2044960"]
[WhiteElo "2703"]
[BlackElo "1989"]
[Result "1-0"]
[Round "03"]
[TimeControl "180+2"]
[Date "2023.05.31"]
[WhiteClock "0:00:20"]
[BlackClock "0:00:08"]

1. e4 {[%clk 0:03:00]}  c5 {[%clk 0:02:59]} 2. Nf3 {[%clk 0:03:00]}  d6 {[%clk 0:03:00]} 3. d4 {[%clk 0:03:00]}  cxd4 {[%clk 0:03:00]} 4. Nxd4 {[%clk 0:03:00]}  Nf6 {[%clk 0:03:01]} 5. Nc3 {[%clk 0:03:00]}  a6 {[%clk 0:03:01]} 6. Bc4 {[%clk 0:03:00]}  e6 {[%clk 0:03:02]} 7. Be3 {[%clk 0:03:00]}  Be7 {[%clk 0:02:59]} 8. Bb3 {[%clk 0:02:59]}  O-O {[%clk 0:02:57]} 9. g4 {[%clk 0:02:59]}  Nc6 {[%clk 0:02:56]} 10. g5 {[%clk 0:02:55]}  Ne8 {[%clk 0:02:53]} 11. h4 {[%clk 0:02:49]}  Nc7 {[%clk 0:02:49]} 12. f4 {[%clk 0:02:44]}  e5 {[%clk 0:02:40]} 13. Nxc6 {[%clk 0:02:27]}  bxc6 {[%clk 0:02:39]} 14. f5 {[%clk 0:02:27]}  Kh8 {[%clk 0:02:23]} 15. Qf3 {[%clk 0:02:13]}  Nb5 {[%clk 0:02:06]} 16. Nxb5 {[%clk 0:01:59]}  axb5 {[%clk 0:02:06]} 17. O-O-O {[%clk 0:01:57]}  Bb7 {[%clk 0:01:32]} 18. Rhg1 {[%clk 0:01:54]}  c5 {[%clk 0:01:29]} 19. Bxc5 {[%clk 0:01:46]}  Qc7 {[%clk 0:01:18]} 20. Bf2 {[%clk 0:01:20]}  Rfc8 {[%clk 0:01:18]} 21. f6 {[%clk 0:01:16]}  Bf8 {[%clk 0:01:13]} 22. fxg7+ {[%clk 0:01:12]}  Bxg7 {[%clk 0:01:13]} 23. Kb1 {[%clk 0:01:07]}  Rf8 {[%clk 0:00:50]} 24. h5 {[%clk 0:01:03]}  f5 {[%clk 0:00:43]} 25. h6 {[%clk 0:01:01]}  Bxe4 {[%clk 0:00:28]} 26. hxg7+ {[%clk 0:00:59]}  Qxg7 {[%clk 0:00:29]} 27. Qh5 {[%clk 0:00:52]}  Rad8 {[%clk 0:00:24]} 28. g6 {[%clk 0:00:50]}  f4 {[%clk 0:00:20]} 29. gxh7 {[%clk 0:00:47]}  Qxh7 {[%clk 0:00:20]} 30. Qe2 {[%clk 0:00:36]}  d5 {[%clk 0:00:17]} 31. Bc5 {[%clk 0:00:29]}  Rg8 {[%clk 0:00:16]} 32. Rxg8+ {[%clk 0:00:27]}  Rxg8 {[%clk 0:00:17]} 33. Bd6 {[%clk 0:00:24]}  Re8 {[%clk 0:00:11]} 34. Qxb5 {[%clk 0:00:21]}  f3 {[%clk 0:00:08]} 35. Qxe8+ {[%clk 0:00:20]} 1-0


[Site "https://www.chess.com"]

[Event "Titled Tuesday Blitz May 30 Late 2023"]
[White "Bryakin, Mikhail"]
[Black "Ljukin, Sergei"]
[WhiteFideId "4165314"]
[BlackFideId "14102200"]
[WhiteElo "2467"]
[BlackElo "2312"]
[Result "1-0"]
[Round "03"]
[TimeControl "180+2"]
[Date "2023.05.31"]
[WhiteClock "0:01:38"]
[BlackClock "0:00:01"]

1. e4 {[%clk 0:02:59]}  e6 {[%clk 0:02:42]} 2. d4 {[%clk 0:02:38]}  d5 {[%clk 0:02:42]} 3. Nc3 {[%clk 0:02:38]}  Bb4 {[%clk 0:02:42]} 4. e5 {[%clk 0:02:35]}  Ne7 {[%clk 0:02:42]} 5. a3 {[%clk 0:02:34]}  Bxc3+ {[%clk 0:02:42]} 6. bxc3 {[%clk 0:02:35]}  c5 {[%clk 0:02:41]} 7. Bd3 {[%clk 0:02:29]}  c4 {[%clk 0:02:38]} 8. Be2 {[%clk 0:02:27]}  Bd7 {[%clk 0:02:38]} 9. h4 {[%clk 0:02:23]}  Ba4 {[%clk 0:02:36]} 10. Bd2 {[%clk 0:02:23]}  Nbc6 {[%clk 0:02:34]} 11. Nf3 {[%clk 0:02:23]}  h6 {[%clk 0:02:32]} 12. h5 {[%clk 0:02:23]}  Kd7 {[%clk 0:02:31]} 13. g4 {[%clk 0:02:23]}  Qg8 {[%clk 0:02:31]} 14. Ra2 {[%clk 0:02:21]}  f6 {[%clk 0:02:17]} 15. Bf4 {[%clk 0:02:18]}  Rf8 {[%clk 0:02:14]} 16. Qd2 {[%clk 0:02:18]}  Qf7 {[%clk 0:01:54]} 17. Bg3 {[%clk 0:02:15]}  f5 {[%clk 0:01:38]} 18. g5 {[%clk 0:02:00]}  Qe8 {[%clk 0:01:18]} 19. Bf4 {[%clk 0:01:55]}  hxg5 {[%clk 0:01:08]} 20. Nxg5 {[%clk 0:01:55]}  Ng8 {[%clk 0:00:36]} 21. Bf3 {[%clk 0:01:51]}  Nh6 {[%clk 0:00:29]} 22. Ke2 {[%clk 0:01:52]}  Nf7 {[%clk 0:00:28]} 23. Rg1 {[%clk 0:01:47]}  Nxg5 {[%clk 0:00:27]} 24. Rxg5 {[%clk 0:01:48]}  Qe7 {[%clk 0:00:20]} 25. Ra1 {[%clk 0:01:48]}  Rf7 {[%clk 0:00:19]} 26. Rg6 {[%clk 0:01:46]}  Nd8 {[%clk 0:00:12]} 27. Rag1 {[%clk 0:01:46]}  Rh7 {[%clk 0:00:11]} 28. Qc1 {[%clk 0:01:46]}  Qf8 {[%clk 0:00:08]} 29. Bg5 {[%clk 0:01:40]}  Bc6 {[%clk 0:00:03]} 30. a4 {[%clk 0:01:38]}  Qe8 {[%clk 0:00:01]} 31. a5 {[%clk 0:01:38]} 1-0


[Site "https://www.chess.com"]

[Event "Titled Tuesday Blitz May 30 Late 2023"]
[White "Mekhitarian, Krikor Sevag"]
[Black "Jovic, Stanoje"]
[WhiteFideId "2107660"]
[BlackFideId "905020"]
[WhiteElo "2604"]
[BlackElo "2236"]
[Result "1-0"]
[Round "03"]
[TimeControl "180+2"]
[Date "2023.05.31"]
[WhiteClock "0:00:20"]
[BlackClock "0:00:06"]

1. Nf3 {[%clk 0:03:00]}  Nf6 {[%clk 0:02:59]} 2. c4 {[%clk 0:02:57]}  c5 {[%clk 0:02:59]} 3. Nc3 {[%clk 0:02:56]}  Nc6 {[%clk 0:02:59]} 4. d4 {[%clk 0:02:54]}  cxd4 {[%clk 0:02:58]} 5. Nxd4 {[%clk 0:02:55]}  g6 {[%clk 0:02:58]} 6. e4 {[%clk 0:02:55]}  Bg7 {[%clk 0:02:52]} 7. Be3 {[%clk 0:02:52]}  O-O {[%clk 0:02:51]} 8. Be2 {[%clk 0:02:51]}  d6 {[%clk 0:02:50]} 9. O-O {[%clk 0:02:47]}  Be6 {[%clk 0:02:50]} 10. Nxe6 {[%clk 0:02:45]}  fxe6 {[%clk 0:02:50]} 11. f4 {[%clk 0:02:41]}  Rc8 {[%clk 0:02:46]} 12. Rc1 {[%clk 0:02:39]}  Qa5 {[%clk 0:02:42]} 13. a3 {[%clk 0:02:29]}  a6 {[%clk 0:02:35]} 14. Qb3 {[%clk 0:02:27]}  Qc7 {[%clk 0:02:29]} 15. c5 {[%clk 0:02:24]}  d5 {[%clk 0:02:12]} 16. exd5 {[%clk 0:02:20]}  exd5 {[%clk 0:02:09]} 17. Nxd5 {[%clk 0:02:15]}  Nxd5 {[%clk 0:02:09]} 18. Qxd5+ {[%clk 0:02:16]}  Kh8 {[%clk 0:02:09]} 19. b4 {[%clk 0:02:08]}  Rcd8 {[%clk 0:02:00]} 20. Qe4 {[%clk 0:02:02]}  Bd4 {[%clk 0:01:50]} 21. Rcd1 {[%clk 0:01:48]}  Bxe3+ {[%clk 0:01:48]} 22. Qxe3 {[%clk 0:01:49]}  Rxd1 {[%clk 0:01:45]} 23. Bxd1 {[%clk 0:01:46]}  e5 {[%clk 0:01:36]} 24. fxe5 {[%clk 0:01:37]}  Rxf1+ {[%clk 0:01:33]} 25. Kxf1 {[%clk 0:01:38]}  Nxe5 {[%clk 0:01:31]} 26. Be2 {[%clk 0:01:35]}  Kg7 {[%clk 0:01:30]} 27. Kg1 {[%clk 0:01:29]}  h6 {[%clk 0:01:19]} 28. Qd4 {[%clk 0:01:26]}  g5 {[%clk 0:01:15]} 29. h4 {[%clk 0:01:18]}  Kf6 {[%clk 0:01:13]} 30. h5 {[%clk 0:01:12]}  Qe7 {[%clk 0:00:47]} 31. a4 {[%clk 0:01:02]}  Qe6 {[%clk 0:00:43]} 32. b5 {[%clk 0:00:55]}  axb5 {[%clk 0:00:41]} 33. axb5 {[%clk 0:00:56]}  Ke7 {[%clk 0:00:40]} 34. Qe4 {[%clk 0:00:48]}  Nd7 {[%clk 0:00:35]} 35. Qxe6+ {[%clk 0:00:47]}  Kxe6 {[%clk 0:00:35]} 36. Bg4+ {[%clk 0:00:28]}  Ke7 {[%clk 0:00:35]} 37. c6 {[%clk 0:00:18]}  bxc6 {[%clk 0:00:35]} 38. bxc6 {[%clk 0:00:19]}  Nb6 {[%clk 0:00:08]} 39. c7 {[%clk 0:00:18]}  Kd6 {[%clk 0:00:06]} 40. c8=Q {[%clk 0:00:18]}  Nxc8 {[%clk 0:00:06]} 41. Bxc8 {[%clk 0:00:19]}  Ke5 {[%clk 0:00:06]} 42. Kf2 {[%clk 0:00:19]}  Kf4 {[%clk 0:00:06]} 43. g4 {[%clk 0:00:19]}  Ke5 {[%clk 0:00:05]} 44. Ke3 {[%clk 0:00:19]}  Kf6 {[%clk 0:00:06]} 45. Ke4 {[%clk 0:00:19]}  Kg7 {[%clk 0:00:06]} 46. Kf5 {[%clk 0:00:19]}  Kh7 {[%clk 0:00:06]} 47. Kf6 {[%clk 0:00:19]}  Kh8 {[%clk 0:00:06]} 48. Kg6 {[%clk 0:00:20]} 1-0


[Site "https://www.chess.com"]

[Event "Titled Tuesday Blitz May 30 Late 2023"]
[White "Simonian, Hrair"]
[Black "Balla, Tamas-Kristof"]
[WhiteFideId "13302337"]
[BlackFideId "1208497"]
[WhiteElo "2447"]
[BlackElo "2334"]
[Result "1-0"]
[Round "03"]
[TimeControl "180+2"]
[Date "2023.05.31"]
[WhiteClock "0:02:54"]
[BlackClock "0:02:04"]

1. e4 {[%clk 0:03:00]}  c5 {[%clk 0:03:00]} 2. Nc3 {[%clk 0:03:00]}  Nc6 {[%clk 0:02:54]} 3. Bb5 {[%clk 0:03:00]}  Nd4 {[%clk 0:02:51]} 4. Bc4 {[%clk 0:03:00]}  e6 {[%clk 0:02:46]} 5. Nge2 {[%clk 0:03:00]}  a6 {[%clk 0:02:46]} 6. Nxd4 {[%clk 0:03:00]}  cxd4 {[%clk 0:02:46]} 7. Ne2 {[%clk 0:03:01]}  Bc5 {[%clk 0:02:38]} 8. O-O {[%clk 0:02:59]}  Ne7 {[%clk 0:02:29]} 9. Bb3 {[%clk 0:02:59]}  O-O {[%clk 0:02:12]} 10. d3 {[%clk 0:02:59]}  b5 {[%clk 0:02:10]} 11. Ng3 {[%clk 0:02:58]}  Bb7 {[%clk 0:02:10]} 12. Qh5 {[%clk 0:02:55]}  Ng6 {[%clk 0:02:04]} 13. Qxc5 {[%clk 0:02:54]} 1-0


[Site "https://www.chess.com"]

[Event "Titled Tuesday Blitz May 30 Late 2023"]
[White "Pulpan, Jakub"]
[Black "Karas, Marek"]
[WhiteFideId "302759"]
[BlackFideId "14928558"]
[WhiteElo "2484"]
[BlackElo "2233"]
[Result "1-0"]
[Round "03"]
[TimeControl "180+2"]
[Date "2023.05.31"]
[WhiteClock "0:00:02"]
[BlackClock "0:00:04"]

1. g3 {[%clk 0:02:52]}  e5 {[%clk 0:02:56]} 2. Bg2 {[%clk 0:02:47]}  Nf6 {[%clk 0:02:55]} 3. e4 {[%clk 0:02:47]}  Bc5 {[%clk 0:02:52]} 4. Ne2 {[%clk 0:02:44]}  Nc6 {[%clk 0:02:48]} 5. c3 {[%clk 0:02:38]}  Bb6 {[%clk 0:02:41]} 6. d4 {[%clk 0:02:33]}  d6 {[%clk 0:02:39]} 7. h3 {[%clk 0:02:31]}  O-O {[%clk 0:02:37]} 8. d5 {[%clk 0:02:13]}  Ne7 {[%clk 0:02:35]} 9. c4 {[%clk 0:02:11]}  c6 {[%clk 0:02:30]} 10. Nbc3 {[%clk 0:02:10]}  Ba5 {[%clk 0:02:25]} 11. O-O {[%clk 0:02:10]}  Bxc3 {[%clk 0:02:20]} 12. Nxc3 {[%clk 0:02:11]}  cxd5 {[%clk 0:02:13]} 13. exd5 {[%clk 0:02:01]}  Ng6 {[%clk 0:02:07]} 14. Be3 {[%clk 0:01:56]}  a6 {[%clk 0:01:59]} 15. b4 {[%clk 0:01:54]}  b6 {[%clk 0:01:48]} 16. c5 {[%clk 0:01:47]}  bxc5 {[%clk 0:01:47]} 17. bxc5 {[%clk 0:01:48]}  dxc5 {[%clk 0:01:39]} 18. Bxc5 {[%clk 0:01:49]}  Re8 {[%clk 0:01:38]} 19. Na4 {[%clk 0:01:07]}  Bd7 {[%clk 0:01:31]} 20. Nb6 {[%clk 0:01:00]}  Rb8 {[%clk 0:01:31]} 21. Rb1 {[%clk 0:01:01]}  Bb5 {[%clk 0:01:30]} 22. Re1 {[%clk 0:01:01]}  Nd7 {[%clk 0:01:26]} 23. Nxd7 {[%clk 0:01:00]}  Qxd7 {[%clk 0:01:27]} 24. Qd2 {[%clk 0:00:56]}  h6 {[%clk 0:01:12]} 25. Be3 {[%clk 0:00:43]}  Rbd8 {[%clk 0:01:05]} 26. Bb6 {[%clk 0:00:34]}  Rb8 {[%clk 0:01:05]} 27. Ba5 {[%clk 0:00:32]}  Rbc8 {[%clk 0:00:53]} 28. Rec1 {[%clk 0:00:28]}  Ne7 {[%clk 0:00:46]} 29. Re1 {[%clk 0:00:14]}  Nf5 {[%clk 0:00:40]} 30. Bc3 {[%clk 0:00:14]}  f6 {[%clk 0:00:35]} 31. h4 {[%clk 0:00:12]}  Nd6 {[%clk 0:00:31]} 32. Bb4 {[%clk 0:00:08]}  Red8 {[%clk 0:00:21]} 33. Bxd6 {[%clk 0:00:07]}  Qxd6 {[%clk 0:00:21]} 34. Rec1 {[%clk 0:00:08]}  Rxc1+ {[%clk 0:00:15]} 35. Rxc1 {[%clk 0:00:09]}  Kf8 {[%clk 0:00:13]} 36. Qc2 {[%clk 0:00:08]}  Kg8 {[%clk 0:00:10]} 37. Qg6 {[%clk 0:00:07]}  Be8 {[%clk 0:00:09]} 38. Qf5 {[%clk 0:00:07]}  Bd7 {[%clk 0:00:10]} 39. Qd3 {[%clk 0:00:05]}  Rc8 {[%clk 0:00:09]} 40. Rd1 {[%clk 0:00:02]}  Bb5 {[%clk 0:00:09]} 41. Qf5 {[%clk 0:00:02]}  Bd7 {[%clk 0:00:10]} 42. Qb1 {[%clk 0:00:03]}  Rb8 {[%clk 0:00:10]} 43. Qc2 {[%clk 0:00:03]}  Rc8 {[%clk 0:00:10]} 44. Qd2 {[%clk 0:00:03]}  Rd8 {[%clk 0:00:08]} 45. Be4 {[%clk 0:00:03]}  f5 {[%clk 0:00:07]} 46. Bc2 {[%clk 0:00:03]}  e4 {[%clk 0:00:06]} 47. Bb3 {[%clk 0:00:03]}  Be8 {[%clk 0:00:05]} 48. Rc1 {[%clk 0:00:03]}  Bf7 {[%clk 0:00:04]} 49. Qa5 {[%clk 0:00:02]} 1-0


[Site "https://www.chess.com"]

[Event "Titled Tuesday Blitz May 30 Late 2023"]
[White "Kielinkei"]
[Black "Tristan, Leonardo"]
[BlackFideId "113816"]
[WhiteElo "2475"]
[BlackElo "2461"]
[Result "0-1"]
[Round "03"]
[TimeControl "180+2"]
[Date "2023.05.31"]
[WhiteClock "0:00:22"]
[BlackClock "0:02:20"]

1. d4 {[%clk 0:03:00]}  d5 {[%clk 0:03:00]} 2. c4 {[%clk 0:02:59]}  e6 {[%clk 0:03:00]} 3. Nc3 {[%clk 0:02:59]}  a6 {[%clk 0:03:01]} 4. cxd5 {[%clk 0:02:58]}  exd5 {[%clk 0:03:02]} 5. Bf4 {[%clk 0:02:59]}  Nf6 {[%clk 0:03:02]} 6. e3 {[%clk 0:02:59]}  c5 {[%clk 0:03:02]} 7. Nf3 {[%clk 0:02:52]}  c4 {[%clk 0:03:02]} 8. Be2 {[%clk 0:02:42]}  b5 {[%clk 0:03:02]} 9. a3 {[%clk 0:02:37]}  Bb7 {[%clk 0:03:02]} 10. O-O {[%clk 0:02:37]}  Be7 {[%clk 0:03:02]} 11. Ne5 {[%clk 0:02:30]}  O-O {[%clk 0:03:02]} 12. Qc2 {[%clk 0:02:24]}  Nbd7 {[%clk 0:03:02]} 13. Bf3 {[%clk 0:02:18]}  g6 {[%clk 0:02:50]} 14. Rfe1 {[%clk 0:02:00]}  Re8 {[%clk 0:02:49]} 15. Rad1 {[%clk 0:01:59]}  Bf8 {[%clk 0:02:44]} 16. Nxd7 {[%clk 0:01:39]}  Qxd7 {[%clk 0:02:44]} 17. Be5 {[%clk 0:01:31]}  Ne4 {[%clk 0:02:38]} 18. Nxe4 {[%clk 0:01:20]}  dxe4 {[%clk 0:02:39]} 19. Be2 {[%clk 0:01:21]}  Bd5 {[%clk 0:02:35]} 20. f3 {[%clk 0:01:02]}  Qc6 {[%clk 0:02:33]} 21. Kf1 {[%clk 0:00:48]}  exf3 {[%clk 0:02:26]} 22. gxf3 {[%clk 0:00:47]}  Bxf3 {[%clk 0:02:27]} 23. Kg1 {[%clk 0:00:35]}  Bh6 {[%clk 0:02:24]} 24. Bxf3 {[%clk 0:00:21]}  Qxf3 {[%clk 0:02:23]} 25. Qe2 {[%clk 0:00:22]}  Qe4 {[%clk 0:02:20]} 0-1


[Site "https://www.chess.com"]

[Event "Titled Tuesday Blitz May 30 Late 2023"]
[White "Sieciechowicz, Marcin"]
[Black "Rottenwohrer Suarez, Juan"]
[WhiteFideId "1130170"]
[BlackFideId "32068182"]
[WhiteElo "2302"]
[BlackElo "2174"]
[Result "1/2-1/2"]
[Round "03"]
[TimeControl "180+2"]
[Date "2023.05.31"]
[WhiteClock "0:00:09"]
[BlackClock "0:00:07"]

1. d4 {[%clk 0:03:00]}  Nf6 {[%clk 0:02:59]} 2. c4 {[%clk 0:03:01]}  g6 {[%clk 0:03:00]} 3. Nc3 {[%clk 0:03:01]}  Bg7 {[%clk 0:03:01]} 4. e4 {[%clk 0:03:02]}  d6 {[%clk 0:03:01]} 5. f3 {[%clk 0:03:02]}  c6 {[%clk 0:03:02]} 6. Be3 {[%clk 0:03:02]}  a6 {[%clk 0:03:02]} 7. c5 {[%clk 0:03:02]}  b5 {[%clk 0:02:52]} 8. cxb6 {[%clk 0:03:02]}  Nbd7 {[%clk 0:02:49]} 9. Qd2 {[%clk 0:03:00]}  a5 {[%clk 0:02:13]} 10. Bd3 {[%clk 0:02:59]}  Nxb6 {[%clk 0:02:11]} 11. Nge2 {[%clk 0:02:59]}  Ba6 {[%clk 0:02:10]} 12. O-O {[%clk 0:02:59]}  Nc4 {[%clk 0:02:08]} 13. Bxc4 {[%clk 0:02:59]}  Bxc4 {[%clk 0:02:09]} 14. Rfd1 {[%clk 0:02:56]}  O-O {[%clk 0:02:08]} 15. Rac1 {[%clk 0:02:56]}  Nd7 {[%clk 0:02:02]} 16. b3 {[%clk 0:02:55]}  Ba6 {[%clk 0:01:56]} 17. Na4 {[%clk 0:02:56]}  Bb5 {[%clk 0:01:49]} 18. Nec3 {[%clk 0:02:55]}  Qb8 {[%clk 0:01:45]} 19. Bh6 {[%clk 0:02:52]}  Bxh6 {[%clk 0:01:37]} 20. Qxh6 {[%clk 0:02:52]}  Rc8 {[%clk 0:01:37]} 21. Qe3 {[%clk 0:02:45]}  Qa7 {[%clk 0:01:30]} 22. Kf2 {[%clk 0:02:45]}  Rab8 {[%clk 0:01:29]} 23. Rd2 {[%clk 0:02:38]}  Ba6 {[%clk 0:01:23]} 24. Rdc2 {[%clk 0:02:37]}  Rb4 {[%clk 0:01:21]} 25. Rd2 {[%clk 0:02:01]}  e6 {[%clk 0:01:13]} 26. d5 {[%clk 0:01:54]}  Qxe3+ {[%clk 0:01:07]} 27. Kxe3 {[%clk 0:01:55]}  exd5 {[%clk 0:00:49]} 28. exd5 {[%clk 0:01:56]}  Nf6 {[%clk 0:00:45]} 29. dxc6 {[%clk 0:01:47]}  Rxc6 {[%clk 0:00:43]} 30. Rcd1 {[%clk 0:01:46]}  d5 {[%clk 0:00:29]} 31. Nxd5 {[%clk 0:01:43]}  Nxd5+ {[%clk 0:00:29]} 32. Rxd5 {[%clk 0:01:44]}  Re6+ {[%clk 0:00:30]} 33. Kf2 {[%clk 0:01:37]}  Re2+ {[%clk 0:00:30]} 34. Kg3 {[%clk 0:01:36]}  Rxa2 {[%clk 0:00:31]} 35. Rxa5 {[%clk 0:01:32]}  Bb5 {[%clk 0:00:25]} 36. Ra8+ {[%clk 0:01:10]}  Kg7 {[%clk 0:00:25]} 37. Rb8 {[%clk 0:00:31]}  Rxb3 {[%clk 0:00:24]} 38. Nc3 {[%clk 0:00:20]}  Rxc3 {[%clk 0:00:19]} 39. Rxb5 {[%clk 0:00:20]}  Rcc2 {[%clk 0:00:20]} 40. Rg1 {[%clk 0:00:21]}  h5 {[%clk 0:00:18]} 41. h4 {[%clk 0:00:21]}  Rd2 {[%clk 0:00:17]} 42. Re5 {[%clk 0:00:21]}  Rdc2 {[%clk 0:00:17]} 43. Re4 {[%clk 0:00:22]}  Rcb2 {[%clk 0:00:17]} 44. Kh3 {[%clk 0:00:22]}  Rc2 {[%clk 0:00:17]} 45. Ree1 {[%clk 0:00:22]}  Rcb2 {[%clk 0:00:17]} 46. Rb1 {[%clk 0:00:22]}  Rd2 {[%clk 0:00:16]} 47. Rbd1 {[%clk 0:00:22]}  Rdc2 {[%clk 0:00:16]} 48. Rc1 {[%clk 0:00:22]}  Rd2 {[%clk 0:00:17]} 49. Kg3 {[%clk 0:00:22]}  Re2 {[%clk 0:00:17]} 50. Rce1 {[%clk 0:00:19]}  Red2 {[%clk 0:00:17]} 51. Rd1 {[%clk 0:00:17]}  Rdc2 {[%clk 0:00:18]} 52. Rd4 {[%clk 0:00:13]}  Re2 {[%clk 0:00:17]} 53. Rd5 {[%clk 0:00:13]}  Rec2 {[%clk 0:00:18]} 54. Rd7 {[%clk 0:00:13]}  Re2 {[%clk 0:00:18]} 55. Rd5 {[%clk 0:00:13]}  Rec2 {[%clk 0:00:19]} 56. Rg5 {[%clk 0:00:14]}  Re2 {[%clk 0:00:19]} 57. Kh3 {[%clk 0:00:14]}  Reb2 {[%clk 0:00:08]} 58. Rc1 {[%clk 0:00:13]}  Rc2 {[%clk 0:00:08]} 59. Rxc2 {[%clk 0:00:13]}  Rxc2 {[%clk 0:00:08]} 60. Rb5 {[%clk 0:00:14]}  Rc1 {[%clk 0:00:08]} 61. Kg3 {[%clk 0:00:14]}  Rc6 {[%clk 0:00:08]} 62. Rb7 {[%clk 0:00:14]}  Rc4 {[%clk 0:00:08]} 63. Kh3 {[%clk 0:00:15]}  Rd4 {[%clk 0:00:09]} 64. g4 {[%clk 0:00:14]}  hxg4+ {[%clk 0:00:07]} 65. fxg4 {[%clk 0:00:15]}  Rd3+ {[%clk 0:00:08]} 66. Kg2 {[%clk 0:00:15]}  Rc3 {[%clk 0:00:08]} 67. Kf2 {[%clk 0:00:16]}  Rd3 {[%clk 0:00:09]} 68. Kg2 {[%clk 0:00:16]}  Rc3 {[%clk 0:00:09]} 69. Rd7 {[%clk 0:00:16]}  Rb3 {[%clk 0:00:09]} 70. Re7 {[%clk 0:00:16]}  Ra3 {[%clk 0:00:10]} 71. Re4 {[%clk 0:00:16]}  Rb3 {[%clk 0:00:10]} 72. Rf4 {[%clk 0:00:17]}  Ra3 {[%clk 0:00:10]} 73. Rf3 {[%clk 0:00:17]}  Rxf3 {[%clk 0:00:08]} 74. Kxf3 {[%clk 0:00:18]}  f5 {[%clk 0:00:06]} 75. gxf5 {[%clk 0:00:07]}  gxf5 {[%clk 0:00:06]} 76. Kf4 {[%clk 0:00:08]}  Kh6 {[%clk 0:00:07]} 77. h5 {[%clk 0:00:09]}  Kxh5 {[%clk 0:00:07]} 78. Kxf5 {[%clk 0:00:09]} 1/2-1/2


[Site "https://www.chess.com"]

[Event "Titled Tuesday Blitz May 30 Late 2023"]
[White "Filgueira, Hernan"]
[Black "Tanenbaum, Zachary"]
[WhiteFideId "101770"]
[BlackFideId "2060850"]
[WhiteElo "2363"]
[BlackElo "2175"]
[Result "1-0"]
[Round "03"]
[TimeControl "180+2"]
[Date "2023.05.31"]
[WhiteClock "0:00:23"]
[BlackClock "0:00:02"]

1. e4 {[%clk 0:02:59]}  e5 {[%clk 0:03:00]} 2. Nf3 {[%clk 0:02:58]}  Nc6 {[%clk 0:03:00]} 3. Bb5 {[%clk 0:02:59]}  a6 {[%clk 0:03:00]} 4. Ba4 {[%clk 0:02:59]}  d6 {[%clk 0:03:00]} 5. c3 {[%clk 0:02:58]}  Nf6 {[%clk 0:03:00]} 6. d3 {[%clk 0:02:54]}  Be7 {[%clk 0:03:00]} 7. Nbd2 {[%clk 0:02:54]}  O-O {[%clk 0:03:00]} 8. O-O {[%clk 0:02:54]}  b5 {[%clk 0:02:59]} 9. Bc2 {[%clk 0:02:53]}  Re8 {[%clk 0:02:55]} 10. Re1 {[%clk 0:02:52]}  Bf8 {[%clk 0:02:55]} 11. a4 {[%clk 0:02:52]}  Bb7 {[%clk 0:02:55]} 12. Nf1 {[%clk 0:02:51]}  Nb8 {[%clk 0:02:50]} 13. Ng3 {[%clk 0:02:50]}  Nbd7 {[%clk 0:02:49]} 14. b4 {[%clk 0:02:48]}  d5 {[%clk 0:02:41]} 15. Bg5 {[%clk 0:02:41]}  h6 {[%clk 0:02:35]} 16. Be3 {[%clk 0:02:31]}  c5 {[%clk 0:01:09]} 17. Qb1 {[%clk 0:02:25]}  Ng4 {[%clk 0:01:06]} 18. Bd2 {[%clk 0:02:17]}  cxb4 {[%clk 0:01:00]} 19. cxb4 {[%clk 0:02:16]}  Qb6 {[%clk 0:01:00]} 20. Rf1 {[%clk 0:02:10]}  Rac8 {[%clk 0:00:56]} 21. h3 {[%clk 0:02:08]}  Ngf6 {[%clk 0:00:56]} 22. Be3 {[%clk 0:02:03]}  d4 {[%clk 0:00:56]} 23. Bd2 {[%clk 0:02:03]}  Rc7 {[%clk 0:00:54]} 24. a5 {[%clk 0:01:56]}  Qc6 {[%clk 0:00:47]} 25. Bb3 {[%clk 0:01:56]}  Bc8 {[%clk 0:00:41]} 26. Qa2 {[%clk 0:01:29]}  Nb8 {[%clk 0:00:35]} 27. Rac1 {[%clk 0:01:29]}  Qb7 {[%clk 0:00:33]} 28. Rxc7 {[%clk 0:01:27]}  Qxc7 {[%clk 0:00:34]} 29. Rc1 {[%clk 0:01:28]}  Qb7 {[%clk 0:00:33]} 30. Qc2 {[%clk 0:01:20]}  Be6 {[%clk 0:00:29]} 31. Bxe6 {[%clk 0:01:19]}  Rxe6 {[%clk 0:00:30]} 32. Qc8 {[%clk 0:01:15]}  Qxc8 {[%clk 0:00:29]} 33. Rxc8 {[%clk 0:01:14]}  Nc6 {[%clk 0:00:29]} 34. Nf5 {[%clk 0:01:10]}  Ne8 {[%clk 0:00:25]} 35. N3h4 {[%clk 0:01:00]}  Bxb4 {[%clk 0:00:14]} 36. Rxc6 {[%clk 0:00:45]}  Bxd2 {[%clk 0:00:14]} 37. Rc8 {[%clk 0:00:45]}  Bxa5 {[%clk 0:00:13]} 38. f4 {[%clk 0:00:44]}  g6 {[%clk 0:00:11]} 39. Nxh6+ {[%clk 0:00:43]}  Kg7 {[%clk 0:00:12]} 40. f5 {[%clk 0:00:41]}  Re7 {[%clk 0:00:11]} 41. Ng4 {[%clk 0:00:40]}  Nd6 {[%clk 0:00:10]} 42. f6+ {[%clk 0:00:39]}  Kh7 {[%clk 0:00:08]} 43. fxe7 {[%clk 0:00:39]}  Nxc8 {[%clk 0:00:07]} 44. e8=Q {[%clk 0:00:39]}  Nd6 {[%clk 0:00:07]} 45. Qe7 {[%clk 0:00:37]}  Bb4 {[%clk 0:00:07]} 46. Qxe5 {[%clk 0:00:35]}  a5 {[%clk 0:00:06]} 47. Nf6+ {[%clk 0:00:35]}  Kh6 {[%clk 0:00:06]} 48. Nd7 {[%clk 0:00:33]}  a4 {[%clk 0:00:05]} 49. Nf3 {[%clk 0:00:33]}  Kh7 {[%clk 0:00:05]} 50. Ng5+ {[%clk 0:00:31]}  Kg8 {[%clk 0:00:04]} 51. Nf6+ {[%clk 0:00:30]}  Kf8 {[%clk 0:00:05]} 52. Ngh7+ {[%clk 0:00:28]}  Kg7 {[%clk 0:00:05]} 53. Ne8+ {[%clk 0:00:27]}  Kxh7 {[%clk 0:00:03]} 54. Nxd6 {[%clk 0:00:27]}  a3 {[%clk 0:00:02]} 55. Nxf7 {[%clk 0:00:24]}  g5 {[%clk 0:00:02]} 56. Nxg5+ {[%clk 0:00:23]}  Kg6 {[%clk 0:00:02]} 57. Qf5+ {[%clk 0:00:23]}  Kg7 {[%clk 0:00:02]} 58. Qf7+ {[%clk 0:00:23]}  Kh6 {[%clk 0:00:02]} 59. h4 {[%clk 0:00:23]}  a2 {[%clk 0:00:02]} 60. Qh7# {[%clk 0:00:23]} 1-0


[Site "https://www.chess.com"]